bitfinex/quotes_ETHUSD_20251122
["timestamp","ask_amount","ask_price","bid_price","bid_amount"]
[1763774235908,0.002,2773.4,2773.3,1.80409664]
[1763774236111,0.2652,2773.4,2772.8,5.31018956]
[1763774236310,0.4813,2773.4,2772.8,5.11128956]
[1763774236699,0.4628,2772.9,2772.4,5.31018956]
[1763774236898,0.4813,2773.4,2772.5,0.53101896]
[1763774237506,0.4813,2773.4,2772.5,1.4380116]
[1763774237711,0.4813,2773.4,2772.5,1.47408013]
[1763774237909,0.4813,2773.4,2772.6,0.405504]
[1763774238624,0.4813,2773.4,2772.5,1.47408013]
[1763774239114,0.4813,2773.4,2772.5,0.405504]
[1763774239501,0.4813,2773.4,2772.5,1.31249664]
[1763774240391,0.4628,2772.6,2772.2,0.405504]
[1763774240723,0.002,2773.4,2772.6,0.405504]
[1763774240897,0.4815,2773.3,2772.8,0.405504]
[1763774242300,0.002,2773.4,2772.8,0.405504]
[1763774243013,0.002,2773.4,2772.6,0.405504]
[1763774243218,0.002,2773.4,2772.6,0.894604]
[1763774244426,0.002,2773.4,2772.9,1.31249664]
[1763774244727,0.002,2773.4,2773.1,0.405504]
[1763774245124,0.002,2773.4,2773.1,0.604404]
[1763774245329,0.4644,2773.2,2772.9,0.90699264]
[1763774245498,0.4644,2773.2,2773.0,0.405504]
[1763774245892,0.002,2773.4,2773.1,0.4916]
[1763774246224,0.002,2773.4,2773.2,0.405504]
[1763774246950,0.002,2773.4,2773.3,1.386204]
[1763774247119,0.002,2773.4,2773.3,2.29319664]
[1763774247445,0.002,2773.7,2773.3,2.29319664]
[1763774247446,0.002,2773.7,2773.6,1.31249664]
[1763774247646,0.002,2773.7,2773.6,6.9153862]
[1763774247946,0.002,2773.7,2773.6,7.4044862]
[1763774250118,0.002,2773.7,2773.6,6.4237862]
[1763774250317,0.2652,2773.7,2773.3,0.74044862]
[1763774250557,0.7445,2773.7,2773.2,5.11128956]
[1763774250825,0.7445,2773.7,2773.3,0.90699264]
[1763774251066,0.2652,2773.7,2773.3,0.90699264]
[1763774251364,0.2652,2773.7,2773.4,0.60182822]
[1763774252054,0.4815,2773.6,2773.5,0.405504]
[1763774252552,0.7447,2773.6,2773.3,1.31249664]
[1763774253554,0.002,2773.7,2772.9,0.90699264]
[1763774253555,0.4815,2773.5,2772.9,0.90699264]
[1763774253752,0.4815,2773.5,2772.8,5.11128956]
[1763774254052,0.4815,2773.5,2772.8,0.51112896]
[1763774254251,0.4815,2773.5,2772.5,0.1989]
[1763774254252,0.4815,2773.5,2772.5,1.10589264]
[1763774254480,0.4815,2773.5,2772.6,0.405504]
[1763774254679,0.4815,2773.5,2772.5,1.10589264]
[1763774254886,0.4815,2773.5,2772.3,2.209906]
[1763774255046,0.4815,2773.5,2772.2,0.1989]
[1763774255246,0.4815,2773.5,2772.3,0.405504]
[1763774256257,0.4815,2773.5,2772.2,0.53101896]
[1763774256658,0.4815,2773.5,2772.1,0.90699264]
[1763774256983,2.65362645,2773.4,2771.6,5.11128956]
[1763774257280,0.77681431,2773.3,2771.8,0.405504]
[1763774257484,0.4949,2773.4,2771.8,0.69112862]
[1763774257670,0.77662201,2773.3,2771.9,0.405504]
[1763774257841,0.4949,2773.5,2771.9,0.405504]
[1763774257842,0.77662201,2773.2,2771.9,0.405504]
[1763774258047,1.27152201,2773.4,2771.9,0.03607633]
[1763774258351,1.27152201,2773.3,2771.9,0.03607633]
[1763774258568,0.4949,2773.3,2771.9,0.44158033]
[1763774258766,0.4949,2773.2,2771.9,0.64555049]
[1763774259162,0.4473,2772.0,2771.1,0.4875]
[1763774259377,0.1945,2772.0,2771.1,0.4875]
[1763774259574,0.1945,2772.0,2771.2,0.405504]
[1763774259763,0.6894,2772.0,2771.2,0.405504]
[1763774259967,0.6894,2772.0,2771.2,0.4875]
[1763774260165,0.4949,2772.4,2771.3,0.90699264]
[1763774260367,0.4949,2772.4,2771.5,0.405504]
[1763774260884,0.56615708,2772.2,2771.5,0.405504]
[1763774261089,0.56615708,2772.2,2771.2,0.405504]
[1763774261390,0.4949,2772.1,2771.0,0.001]
[1763774261551,0.4949,2772.1,2771.0,0.65177822]
[1763774261904,0.4949,2772.1,2771.0,0.001]
[1763774262104,0.4949,2772.1,2771.0,0.03708805]
[1763774262272,0.4949,2772.1,2771.1,0.405504]
[1763774262677,0.4949,2772.1,2771.2,0.03608545]
[1763774263020,0.4949,2772.4,2771.3,0.405504]
[1763774263172,0.4949,2772.4,2771.5,0.405504]
[1763774263608,0.4949,2772.4,2771.5,0.893004]
[1763774264108,0.4949,2772.4,2771.7,0.405504]
[1763774264674,0.4949,2772.4,2771.8,0.03607763]
[1763774264881,0.4949,2772.4,2771.5,0.4875]
[1763774265083,0.4949,2772.4,2771.6,0.405504]
[1763774265500,0.4949,2772.4,2771.7,0.405504]
[1763774266277,0.4949,2772.4,2771.9,0.405504]
[1763774266480,0.4949,2772.4,2771.7,0.405504]
[1763774266881,0.4949,2772.4,2771.6,0.405504]
[1763774267185,0.4949,2772.4,2771.8,0.405504]
[1763774267600,0.1001,2773.0,2771.9,0.405504]
[1763774267601,0.4949,2772.8,2771.9,0.405504]
[1763774267783,0.4949,2772.8,2771.9,1.31249664]
[1763774267983,0.4949,2772.8,2772.1,0.405504]
[1763774268385,0.595,2773.0,2772.1,0.1844]
[1763774268801,0.4949,2773.3,2772.2,5.10568962]
[1763774269000,0.4949,2773.3,2772.4,0.405504]
[1763774269412,0.4949,2773.3,2772.6,5.10568962]
[1763774269729,0.3495,2772.7,2772.6,0.405504]
[1763774269900,0.4949,2773.2,2772.4,0.405504]
[1763774270097,0.4949,2773.2,2772.6,0.405504]
[1763774270292,0.4969,2773.5,2772.6,0.405504]
[1763774270523,0.4969,2773.5,2772.7,0.405504]
[1763774270824,0.4969,2773.5,2772.9,0.405504]
[1763774271804,0.002,2773.5,2772.9,0.893004]
[1763774272543,0.002,2773.5,2773.1,0.405504]
[1763774272707,0.002,2773.5,2773.4,1.086104]
[1763774273199,0.002,2773.5,2773.4,1.573604]
[1763774275425,0.002,2773.5,2773.4,0.405504]
[1763774276530,0.002,2773.5,2773.4,0.901704]
[1763774276896,0.002,2773.5,2773.4,1.389204]
[1763774278415,0.002,2773.5,2773.4,0.901704]
[1763774280137,0.002,2773.5,2773.4,1.389204]
[1763774280322,0.002,2773.5,2773.4,1.42526082]
[1763774280725,0.002,2773.5,2773.4,0.93776082]
[1763774281035,0.002,2773.5,2773.4,0.405504]
[1763774281436,0.002,2773.5,2773.4,17.77085126]
[1763774281740,0.002,2773.5,2773.4,16.36862039]
[1763774282036,0.002,2773.8,2773.7,12.994042]
[1763774282238,0.002,2773.8,2773.7,14.51923464]
[1763774282435,0.002,2774.0,2773.9,4.211504]
[1763774282607,0.002,2774.0,2773.9,10.97151605]
[1763774282808,0.002,2774.0,2773.9,11.45901605]
[1763774283817,0.1945,2775.1,2773.9,27.16183569]
[1763774284017,0.1945,2776.0,2774.1,0.405504]
[1763774284220,0.4949,2775.4,2774.4,8.20196426]
[1763774284421,0.4949,2775.4,2774.4,8.69816426]
[1763774284626,0.4949,2775.4,2774.4,9.18566426]
[1763774285634,0.4971,2775.8,2774.4,23.41609426]
[1763774285944,0.4971,2775.8,2774.4,24.27482169]
[1763774286544,0.4971,2775.8,2774.7,1.31249664]
[1763774286746,0.4971,2775.8,2774.7,1.78899664]
[1763774286944,0.1945,2776.0,2774.7,1.31249664]
[1763774287112,0.1945,2776.0,2774.4,4.70018562]
[1763774287113,0.166,2774.9,2774.5,0.405504]
[1763774287313,0.1945,2776.0,2774.7,6.48918226]
[1763774287514,0.4971,2775.7,2774.7,7.65509049]
[1763774289714,0.1945,2776.0,2774.8,7.46396864]
[1763774289918,0.1945,2776.4,2775.6,0.405504]
[1763774290164,0.6916,2776.4,2775.6,0.405504]
[1763774290661,0.4971,2776.3,2775.6,0.405504]
[1763774290856,0.2128,2775.7,2775.6,0.405504]
[1763774291166,0.4093,2775.7,2775.2,1.43449664]
[1763774291367,0.4971,2776.3,2775.7,0.405504]
[1763774291828,0.4971,2776.3,2775.6,0.405504]
[1763774292053,0.4971,2776.3,2775.6,0.864404]
[1763774292579,0.4971,2776.3,2775.6,1.77139664]
[1763774293969,0.1965,2776.6,2776.0,0.405504]
[1763774294144,0.4971,2776.3,2775.1,0.90699264]
[1763774294349,0.4971,2776.3,2775.2,0.56071783]
[1763774294887,0.1965,2776.6,2775.2,0.56071783]
[1763774294888,0.4971,2776.4,2775.5,0.405504]
[1763774295082,0.4971,2776.5,2775.5,0.405504]
[1763774295382,0.4971,2776.5,2775.9,0.405504]
[1763774296044,0.2109,2776.0,2775.4,5.15908562]
[1763774296269,0.4971,2776.5,2775.6,0.405504]
[1763774296477,0.1601,2775.9,2775.6,0.405504]
[1763774297266,0.4971,2776.2,2775.6,0.405504]
[1763774297665,0.1965,2776.6,2775.6,0.405504]
[1763774297873,0.4971,2776.5,2775.6,1.05266223]
[1763774298214,0.2109,2775.7,2775.6,1.05266223]
[1763774298558,0.1965,2775.9,2775.6,1.05266223]
[1763774298896,0.1965,2775.9,2775.7,0.19596549]
[1763774299107,0.1965,2776.6,2775.7,0.19596549]
[1763774299259,0.4971,2776.4,2775.7,0.19596549]
[1763774299780,0.1965,2776.6,2775.7,0.19596549]
[1763774299980,0.6936,2776.6,2775.9,0.90699264]
[1763774300185,0.6936,2776.6,2776.0,0.96622183]
[1763774300690,0.1965,2776.6,2776.2,0.405504]
[1763774300855,0.1965,2776.6,2776.2,0.44152445]
[1763774301056,0.1965,2776.8,2776.2,0.44152445]
[1763774301256,0.1965,2776.8,2776.4,0.405504]
[1763774301494,0.1965,2776.8,2776.6,0.405504]
[1763774301657,0.2109,2776.7,2776.6,0.405504]
[1763774301858,0.002,2776.4,2776.0,0.56071783]
[1763774302074,0.0049,2776.3,2776.1,0.405504]
[1763774302392,0.4991,2776.4,2776.1,0.405504]
[1763774302393,0.002,2776.4,2776.1,0.405504]
[1763774303638,0.2109,2776.2,2776.1,0.59282545]
[1763774303800,0.2109,2776.2,2775.1,4.88988562]
[1763774304011,0.4971,2776.1,2775.2,1.31249664]
[1763774304191,0.4971,2776.1,2775.3,0.66612823]
[1763774304894,0.4971,2776.1,2775.4,0.405504]
[1763774305804,0.002,2776.4,2775.6,0.405504]
[1763774306019,0.4971,2776.1,2775.3,0.70216037]
[1763774306224,0.4971,2776.1,2775.4,0.405504]
[1763774306386,0.4971,2776.1,2775.4,0.6069697]
[1763774306825,0.4971,2776.1,2774.9,0.4589]
[1763774306826,0.4074,2775.5,2774.1,0.1721]
[1763774307046,0.4971,2775.4,2774.3,0.4589]
[1763774307244,0.4971,2775.4,2774.5,0.4589]
[1763774307457,0.4971,2775.4,2774.6,0.94303387]
[1763774307664,0.4971,2775.4,2774.8,0.405504]
[1763774308215,0.1965,2775.5,2775.0,0.405504]
[1763774308555,0.4971,2775.8,2774.9,0.405504]
[1763774308556,0.1965,2775.7,2774.9,0.405504]
[1763774308921,0.2109,2775.0,2774.7,0.61021195]
[1763774309243,0.4971,2775.6,2774.2,0.4589]
[1763774309244,0.4074,2774.8,2774.2,0.90699264]
[1763774309447,0.1965,2774.8,2774.3,0.405504]
[1763774309754,0.6936,2774.8,2774.2,0.90699264]
[1763774309924,0.4971,2775.3,2774.3,0.405504]
[1763774311674,0.4074,2774.5,2774.1,0.001]
[1763774311976,0.9016,2774.5,2774.1,0.001]
[1763774314630,0.2109,2774.5,2774.2,0.405504]
[1763774314865,0.7051,2774.5,2774.2,0.405504]
[1763774315164,0.7051,2774.5,2774.1,0.001]
[1763774316364,0.2137,2774.5,2774.1,0.001]
[1763774316567,0.1965,2774.7,2774.2,0.405504]
[1763774317367,0.6626,2774.7,2774.2,0.405504]
[1763774318471,0.2416,2774.5,2774.1,0.001]
[1763774320169,0.7055,2774.5,2774.1,0.001]
[1763774320862,0.2416,2774.5,2774.1,0.001]
[1763774321059,0.002,2774.8,2774.5,0.405504]
[1763774321265,0.002,2774.8,2774.6,0.03604123]
[1763774321572,0.002,2774.8,2774.5,0.894204]
[1763774323528,0.002,2774.8,2774.7,0.893304]
[1763774323672,0.002,2774.8,2774.7,1.50512722]
[1763774323871,0.2448,2774.8,2774.7,0.405504]
[1763774325874,0.002,2774.8,2774.7,0.405504]
[1763774326213,0.247,2774.8,2774.7,0.405504]
[1763774326400,0.002,2774.8,2774.7,0.405504]
[1763774327378,0.002,2774.8,2774.7,7.38798999]
[1763774327579,0.002,2774.8,2774.7,8.12678899]
[1763774328876,0.002,2774.8,2774.7,2.53909564]
[1763774329077,0.002,2774.8,2774.7,1.80029664]
[1763774329408,0.002,2774.8,2774.7,2.28899664]
[1763774330422,0.002,2774.8,2774.7,9.45747399]
[1763774330730,0.002,2774.8,2774.7,19.62788599]
[1763774331105,0.002,2774.8,2774.7,23.23187921]
[1763774331300,0.002,2775.1,2775.0,16.77622364]
[1763774331500,0.002,2775.1,2775.0,17.26402364]
[1763774331700,0.002,2775.1,2775.0,20.91152564]
[1763774331914,0.002,2775.1,2775.0,19.75094664]
[1763774332589,0.002,2775.1,2775.0,20.96286264]
[1763774332790,0.002,2775.4,2775.3,8.022434]
[1763774332994,0.002,2775.4,2775.3,15.12691999]
[1763774333612,0.002,2775.4,2775.3,10.67883299]
[1763774333819,0.002,2775.4,2775.3,11.56647499]
[1763774334625,0.002,2776.7,2775.6,0.405504]
[1763774334925,0.002,2776.7,2776.3,0.893304]
[1763774335228,0.002,2776.7,2776.3,1.80029664]
[1763774335391,0.002,2776.7,2776.3,2.28899664]
[1763774336307,0.002,2776.7,2776.3,0.405504]
[1763774336503,0.002,2776.7,2776.3,0.893304]
[1763774337207,0.002,2776.7,2776.3,1.382004]
[1763774337402,0.002,2776.7,2776.3,2.28899664]
[1763774337606,0.002,2776.7,2776.3,3.02779564]
[1763774340232,0.002,2776.7,2776.3,2.05129564]
[1763774340406,0.002,2776.7,2776.3,0.738799]
[1763774340611,0.002,2776.7,2776.0,0.122]
[1763774340920,0.4681,2776.4,2775.6,0.4887]
[1763774341099,0.4681,2776.4,2775.7,0.15802694]
[1763774341301,0.002,2776.4,2775.9,0.90699264]
[1763774341534,0.002,2776.4,2776.1,0.405504]
[1763774341704,0.002,2776.4,2776.3,1.31249664]
[1763774342042,0.7425,2776.4,2775.4,5.58769335]
[1763774342241,0.0047,2776.3,2775.5,0.68076934]
[1763774342550,0.4708,2776.3,2775.5,1.58776198]
[1763774342714,0.4708,2776.3,2775.5,2.07646198]
[1763774343031,0.4708,2776.3,2775.6,0.405504]
[1763774343230,0.4708,2776.3,2775.5,2.07646198]
[1763774343399,0.4708,2776.3,2775.6,0.71754553]
[1763774343596,0.4708,2776.3,2775.7,0.44153094]
[1763774344033,0.2717,2775.8,2775.6,0.71754553]
[1763774344210,0.0074,2775.7,2775.6,0.71754553]
[1763774344937,0.0074,2775.7,2775.2,0.1834]
[1763774345141,0.4735,2775.7,2775.2,0.1834]
[1763774345636,0.1824,2776.3,2775.7,0.405504]
[1763774345934,0.1824,2776.3,2775.9,0.405504]
[1763774346138,0.4694,2776.2,2775.6,0.6005986]
[1763774346301,0.4694,2776.2,2775.7,0.405504]
[1763774346302,0.2675,2775.9,2775.7,0.405504]
[1763774346725,0.2675,2775.9,2775.4,0.405504]
[1763774346903,0.1824,2775.9,2775.4,0.405504]
[1763774347100,0.6518,2775.9,2775.3,0.405504]
[1763774347533,0.6518,2776.3,2775.3,0.901604]
[1763774347734,0.6518,2776.3,2775.4,0.03603084]
[1763774348037,0.6518,2776.3,2775.5,0.405504]
[1763774348235,0.6518,2776.3,2775.7,0.405504]
[1763774348438,0.1824,2776.3,2775.7,0.44153094]
[1763774348744,0.1824,2776.3,2775.7,0.03602694]
[1763774348907,0.4614,2775.8,2775.2,0.3054]
[1763774349109,0.4614,2775.8,2775.3,0.405504]
[1763774349307,0.6438,2775.8,2775.3,0.405504]
[1763774349724,0.4694,2776.2,2775.3,0.901604]
[1763774350013,0.4694,2776.2,2775.5,0.405504]
[1763774350213,0.4694,2776.2,2775.6,0.03602824]
[1763774350420,0.1824,2776.3,2775.6,0.03602824]
[1763774350640,0.1824,2776.3,2775.8,0.405504]
[1763774350820,0.1824,2776.3,2775.8,0.44152965]
[1763774351139,0.6518,2776.3,2775.8,0.44152965]
[1763774351327,0.6518,2776.3,2775.8,0.405504]
[1763774351531,0.4694,2776.2,2775.8,0.405504]
[1763774354462,0.1824,2776.3,2775.8,0.405504]
[1763774354615,0.1824,2776.3,2776.0,0.405504]
[1763774355323,0.002,2776.2,2776.0,0.405504]
[1763774356106,0.002,2776.2,2776.1,0.869004]
[1763774356310,0.002,2776.2,2776.1,1.40112575]
[1763774356544,0.002,2776.2,2776.1,1.63193759]
[1763774357541,0.002,2776.2,2776.1,1.59591584]
[1763774358224,0.002,2776.2,2776.1,1.63193759]
[1763774359778,0.002,2776.2,2776.1,5.40591584]
[1763774360937,0.002,2776.2,2776.1,12.93706923]
[1763774361179,0.002,2776.2,2776.1,12.03749648]
[1763774361782,0.002,2776.2,2776.1,10.13955748]
[1763774361951,0.002,2776.2,2776.1,8.36205948]
[1763774362373,0.002,2776.2,2776.1,5.93880848]
[1763774362570,0.002,2776.2,2776.1,6.43490848]
[1763774362959,0.002,2776.2,2776.1,5.35330848]
[1763774363155,0.002,2776.2,2776.1,2.53893023]
[1763774363879,0.002,2776.2,2776.1,11.67055948]
[1763774364181,0.002,2776.2,2776.1,11.04454048]
[1763774365078,0.002,2776.2,2776.1,24.97979319]
[1763774365249,0.002,2776.2,2776.1,18.85472848]
[1763774365581,0.002,2776.2,2776.1,22.45690419]
[1763774366281,0.002,2776.4,2776.3,18.26863999]
[1763774366483,0.002,2776.5,2776.4,24.46011764]
[1763774366681,0.002,2776.7,2776.6,5.11849664]
[1763774366855,0.002,2776.7,2776.6,24.50465625]
[1763774367055,0.002,2776.7,2776.6,25.32989049]
[1763774367279,0.002,2776.7,2776.6,36.66028354]
[1763774367478,0.002,2776.7,2776.6,33.79912754]
[1763774367680,0.002,2776.7,2776.6,33.09819754]
[1763774367852,0.002,2776.7,2776.6,36.69972458]
[1763774368176,0.4214,2777.9,2776.8,5.11849664]
[1763774368377,0.4214,2777.9,2777.2,0.405504]
[1763774368579,0.1824,2778.6,2777.4,0.405504]
[1763774369752,0.1824,2778.6,2777.1,0.90699264]
[1763774369753,0.4614,2777.5,2777.1,0.90699264]
[1763774370086,0.4588,2777.2,2777.1,1.13649485]
[1763774370280,0.1824,2778.6,2777.2,0.405504]
[1763774370281,0.195,2778.0,2777.2,0.405504]
[1763774370584,0.4694,2778.0,2777.2,0.405504]
[1763774370782,0.1845,2777.3,2777.0,0.03601008]
[1763774370944,0.1845,2777.3,2777.0,0.405504]
[1763774371144,0.6511,2777.3,2777.0,0.405504]
[1763774371385,0.6511,2777.3,2776.9,0.405504]
[1763774371566,0.6511,2777.3,2777.1,1.31249664]
[1763774371761,0.6511,2777.3,2777.1,1.8247463]
[1763774372103,0.6511,2777.2,2776.1,5.59509335]
[1763774372247,0.6511,2777.2,2776.0,4.18922771]
[1763774372248,0.0047,2777.1,2776.5,5.09899335]
[1763774372451,0.0047,2777.1,2776.7,0.405504]
[1763774372654,0.1824,2778.6,2776.8,0.03601267]
[1763774372855,0.4694,2777.3,2776.8,0.03601267]
[1763774373081,0.4694,2777.3,2776.9,0.405504]
[1763774373693,0.4694,2777.3,2776.7,0.405504]
[1763774373866,0.4694,2777.3,2776.9,0.405504]
[1763774374055,0.4714,2777.3,2776.9,0.405504]
[1763774374271,0.1845,2777.0,2776.9,0.405504]
[1763774374698,0.6511,2777.0,2776.9,0.405504]
[1763774375274,0.6511,2777.0,2776.8,0.19305966]
[1763774375477,0.6511,2777.0,2776.6,0.90699264]
[1763774375478,0.0047,2776.9,2776.6,0.90699264]
[1763774375795,0.0017,2776.7,2776.3,0.15801916]
[1763774375951,0.0017,2776.7,2776.4,0.405504]
[1763774376153,0.002,2777.3,2776.7,0.405504]
[1763774376362,0.4561,2777.3,2776.7,0.405504]
[1763774376564,0.4561,2777.3,2776.5,0.405504]
[1763774376764,0.4561,2777.3,2776.9,0.405504]
[1763774377205,0.1997,2777.0,2776.7,0.405504]
[1763774377996,0.6512,2777.0,2776.7,0.405504]
[1763774378900,0.1997,2777.0,2776.7,1.092243]
[1763774379071,0.6512,2777.0,2776.7,1.092243]
[1763774379673,0.6512,2777.0,2776.9,0.405504]
[1763774380704,0.6512,2777.0,2776.5,0.90699264]
[1763774380857,0.1952,2776.1,2776.0,3.81]
[1763774381048,0.1952,2776.1,2775.6,0.4559]
[1763774381252,0.1952,2776.1,2775.6,0.5779]
[1763774381658,0.1952,2776.1,2775.7,0.405504]
[1763774382506,0.1952,2776.1,2775.6,0.5779]
[1763774383009,0.1952,2776.1,2775.7,0.405504]
[1763774383917,0.6493,2776.1,2775.4,0.90799264]
[1763774384208,0.0064,2775.8,2775.6,0.405504]
[1763774384366,0.0064,2775.8,2775.5,0.7226986]
[1763774384779,0.1537,2775.9,2775.6,0.405504]
[1763774385112,0.4801,2775.6,2775.5,0.6006986]
[1763774385710,0.6834,2775.6,2775.5,0.6006986]
[1763774385876,0.6834,2775.6,2775.4,0.001]
[1763774386077,0.002,2775.5,2775.4,0.001]
[1763774386314,0.1537,2775.9,2775.4,0.001]
[1763774386527,0.6353,2776.4,2775.9,0.405504]
[1763774386893,0.6353,2776.4,2775.8,0.4786]
[1763774386894,0.6353,2776.4,2775.8,0.405504]
[1763774387288,0.1812,2776.4,2775.9,0.03602435]
[1763774387495,0.6353,2776.4,2775.9,0.03602435]
[1763774387690,0.6353,2776.4,2775.8,0.405504]
[1763774388810,0.6353,2776.4,2776.0,0.405504]
[1763774389010,0.6353,2776.4,2776.2,0.405504]
[1763774389320,0.2019,2776.3,2776.2,0.405504]
[1763774389503,0.6534,2776.3,2776.2,0.405504]
[1763774392898,0.6534,2776.3,2776.1,0.001]
[1763774393202,0.4586,2776.2,2776.1,0.001]
[1763774394523,0.0045,2776.2,2776.1,0.001]
[1763774395020,0.4586,2776.2,2776.1,0.001]
[1763774396227,0.0045,2776.2,2776.1,0.001]
[1763774396623,0.4586,2776.2,2776.1,0.001]
[1763774396790,0.0045,2776.2,2776.1,0.001]
[1763774398093,0.4586,2776.2,2776.1,0.001]
[1763774399529,0.0045,2776.2,2776.1,0.001]
[1763774400419,0.0045,2776.2,2776.1,4.25252575]
[1763774400617,0.1812,2776.4,2776.2,0.405504]
[1763774400809,0.1812,2777.0,2776.2,0.405504]
[1763774401014,0.4541,2776.8,2776.4,0.405504]
[1763774401739,0.6353,2777.0,2776.4,0.405504]
[1763774401937,0.2494,2776.5,2776.4,0.405504]
[1763774402106,0.2494,2776.5,2776.4,0.91775366]
[1763774402502,0.2494,2776.5,2776.1,0.60815258]
[1763774402503,0.7014,2776.5,2776.1,0.001]
[1763774402706,0.247,2776.2,2776.1,0.001]
[1763774403398,0.7011,2776.2,2776.1,0.001]
[1763774406648,0.7037,2776.2,2776.1,0.001]
[1763774408045,0.7037,2776.2,2775.4,0.001]
[1763774408348,0.4757,2775.5,2775.4,0.001]
[1763774408756,0.8831,2775.5,2775.4,0.001]
[1763774411930,0.6959,2775.5,2775.4,0.001]
[1763774413026,0.1891,2775.8,2775.5,0.405504]
[1763774413229,0.4791,2776.0,2775.5,0.405504]
[1763774413425,0.002,2776.2,2775.6,0.405504]
[1763774413426,0.1891,2776.1,2775.6,0.405504]
[1763774413739,0.1891,2776.1,2775.4,0.001]
[1763774414142,0.2168,2775.5,2775.4,0.001]
[1763774414461,0.4765,2776.0,2775.5,0.405504]
[1763774414645,0.1891,2776.1,2775.5,0.405504]
[1763774415043,0.1891,2776.1,2775.4,0.4552]
[1763774415044,0.2168,2775.6,2775.4,0.001]
[1763774415255,0.0022,2775.5,2775.4,0.001]
[1763774416173,0.4791,2775.8,2775.4,0.001]
[1763774416540,0.6682,2776.1,2775.4,0.001]
[1763774416943,0.4791,2776.0,2775.4,0.001]
[1763774417783,0.1891,2776.1,2775.6,0.405504]
[1763774417951,0.6682,2776.1,2775.8,0.405504]
[1763774418784,0.2168,2775.9,2775.8,0.405504]
[1763774419140,0.2168,2775.9,2775.4,0.406504]
[1763774419381,0.6933,2775.9,2775.4,0.001]
[1763774419582,0.0048,2775.5,2775.4,0.001]
[1763774421842,0.4791,2775.8,2775.4,0.001]
[1763774422044,0.6682,2776.1,2775.4,0.001]
[1763774422248,0.6682,2776.1,2775.5,0.405504]
[1763774422456,0.1891,2776.1,2775.5,0.405504]
[1763774422684,0.002,2776.2,2775.7,0.405504]
[1763774422992,0.4811,2776.2,2775.7,0.405504]
[1763774423548,0.2168,2775.8,2775.7,0.405504]
[1763774424792,0.002,2776.2,2775.7,1.38916157]
[1763774425089,0.4811,2776.2,2775.7,1.38916157]
[1763774429998,0.4811,2776.2,2776.1,1.071104]
[1763774429999,0.002,2776.2,2776.1,1.071104]
[1763774430184,0.002,2776.2,2776.1,1.64672157]
[1763774430547,0.002,2776.2,2776.1,2.10092157]
[1763774430880,0.002,2776.2,2776.1,1.64672157]
[1763774431087,0.2111,2776.2,2776.1,0.405504]
[1763774431483,0.2111,2776.2,2775.7,0.405504]
[1763774431484,0.6875,2776.2,2775.7,0.405504]
[1763774431907,0.6682,2776.1,2775.4,0.4552]
[1763774432117,0.1891,2776.1,2775.5,0.405504]
[1763774432306,0.002,2776.2,2775.7,0.405504]
[1763774432513,0.4791,2776.1,2775.6,0.90699264]
[1763774432713,0.4791,2776.1,2775.7,0.405504]
[1763774433918,0.2091,2775.8,2775.7,0.405504]
[1763774434222,0.2091,2775.8,2775.6,0.55930644]
[1763774434415,0.2091,2775.8,2775.4,0.001]
[1763774434416,0.2091,2775.7,2775.4,0.001]
[1763774435124,0.4838,2776.1,2775.4,0.899204]
[1763774437824,0.4838,2776.1,2775.4,0.874004]
[1763774439501,0.4838,2776.1,2775.4,0.406504]
[1763774439906,0.2043,2775.5,2775.4,0.001]
[1763774440429,0.675,2775.5,2775.4,0.001]
[1763774441126,0.4707,2775.9,2775.4,0.001]
[1763774441426,0.2174,2775.5,2775.4,0.001]
[1763774441632,0.4681,2775.8,2775.4,0.001]
[1763774442695,0.002,2776.2,2775.4,0.001]
[1763774443019,0.4707,2776.0,2775.4,0.001]
[1763774445127,0.002,2775.9,2775.4,0.4685]
[1763774445431,0.002,2775.9,2775.4,0.001]
[1763774445596,0.2174,2775.5,2775.4,0.001]
[1763774446691,0.6855,2775.5,2775.4,0.001]
[1763774447631,0.6855,2775.5,2775.1,0.001]
[1763774447925,0.7957417,2775.9,2775.1,0.001]
[1763774447926,0.0047,2775.2,2775.1,0.001]
[1763774448535,0.4754,2775.2,2775.1,0.001]
[1763774451332,0.4707,2775.5,2775.1,0.4629]
[1763774451532,0.4707,2775.5,2775.1,0.001]
[1763774454229,0.002,2775.9,2775.1,0.001]
[1763774454437,0.4707,2775.8,2775.1,0.001]
[1763774460355,0.2174,2775.2,2775.1,0.001]
[1763774461477,0.4681,2775.5,2775.1,0.4629]
[1763774462161,0.2199,2775.2,2775.1,0.001]
[1763774462572,0.6856,2775.2,2775.0,0.001]
[1763774462736,0.70300015,2775.1,2774.8,0.001]
[1763774463070,0.1905,2774.9,2774.5,0.001]
[1763774463233,0.2142,2774.7,2774.5,0.001]
[1763774463435,4.26909,2774.7,2774.5,0.001]
[1763774463632,0.949339,2774.6,2774.1,0.001]
[1763774463835,0.2117,2774.5,2774.1,0.001]
[1763774464068,0.6824,2774.5,2774.1,0.001]
[1763774467076,0.2117,2774.5,2774.1,0.001]
[1763774467276,0.1883,2774.9,2774.4,0.458]
[1763774467771,0.4552,2774.8,2774.4,0.001]
[1763774467974,0.2276,2774.5,2774.4,0.001]
[1763774468473,0.6805,2774.5,2774.4,0.001]
[1763774476490,0.69640015,2774.5,2774.4,0.001]